Cogmind - Beta 14 @@@ ROGUE MODE // 2024.09.08 @ 20:33:52 Player: Dull Result: Destroyed by QM-27J(R) with Subdweller Beam Cannon Performance ------------- Evolutions (0) 0 Regions Visited (2) 400 Robots Destroyed (16) 80 Value Destroyed (484) 484 Prototype IDs (0) 0 Alien Tech Used (0) 0 Bonus (0) 0 TOTAL SCORE: 964 Bonus ------- None Cogmind --------- Core Integrity 0/250 Matter 300/300 Energy 250/250 System Corruption 3% Temperature Hot (245) Movement Walking (400) Ox4 Location -10/Subcaves Parts ------- > --- POWER (1) -------- Ion Engine > --- PROPULSION (2) --- Aluminum Leg > --- UTILITY (2) ------ High-capacity Storage Unit > --- WEAPON (2) ------- Medium Laser Small Laser > --- INVENTORY (20) --- Aluminum Leg Aluminum Leg Aluminum Leg Aluminum Leg Aluminum Leg Aluminum Leg Aluminum Leg Aluminum Leg Aluminum Leg Medium Storage Unit Medium Matter Pod (100) Signal Interpreter Power Shielding Weapon Shielding Small Laser Small Laser Grenade Launcher Mining Laser Peak State ------------ > --- POWER ------------ Ion Engine > --- PROPULSION ------- Light Treads Light Treads > --- UTILITY ---------- High-capacity Storage Unit Seismic Detector > --- WEAPON ----------- Small Laser Grenade Launcher > --- INVENTORY -------- Ion Engine Light Ion Engine Aluminum Leg Aluminum Leg Aluminum Leg Aluminum Leg Small Storage Unit Medium Matter Pod Seismic Detector Power Shielding Medium Laser Small Laser Small Laser Small Laser Assault Rifle Welding Torch Welding Torch Welding Torch Welding Torch Welding Torch [Rating: 9] Favorites ----------- Power Ion Engine Engine Ion Engine Propulsion Aluminum Leg Treads Light Treads Leg Aluminum Leg Utility High-capacity Storage Unit Device Seismic Detector Storage High-capacity Storage Unit Weapon Medium Laser Energy Gun Medium Laser Ballistic Gun Assault Rifle Launcher Grenade Launcher Special Weapon Welding Torch Build | -11 -10 -10 ------- Run | Yrd Mat Sub Slots Evolved . | . . . Power . | . . . Propulsion . | . . . Utility . | . . . Weapon . | . . . Parts Attached 35 | 7 28 . Power 6 | 2 4 . Engine 6 | 2 4 . Core . | . . . Reactor . | . . . Propulsion 10 | 2 8 . Treads 2 | 2 . . Leg 8 | . 8 . Wheel . | . . . Hover . | . . . Flight . | . . . Utility 7 | 1 6 . Device 3 | . 3 . Storage 4 | 1 3 . Processor . | . . . Hackware . | . . . Protection . | . . . Artifact . | . . . Weapon 12 | 2 10 . Energy Gun 7 | 1 6 . Energy Cannon . | . . . Ballistic Gun 3 | 1 2 . Ballistic Cannon . | . . . Launcher 1 | . 1 . Special Weapon 1 | . 1 . Impact Weapon . | . . . Slashing Weapon . | . . . Piercing Weapon . | . . . Special Melee Weapon . | . . . Unidentified Prototypes . | . . . Parts Lost 9 | . 7 2 Power 3 | . 3 . Propulsion 1 | . . 1 Utility 2 | . 1 1 Weapon 3 | . 3 . Highest Loss Streak 2 | . 2 2 To Critical Strikes . | . . . Average Slot Usage (%) 97 | . 97 98 Engine 13 | . 13 14 Treads 2 | . 2 . Leg 25 | . 25 27 Device 13 | . 13 13 Storage 13 | . 13 14 Energy Gun 19 | . 18 28 Ballistic Gun 5 | . 6 . Launcher 1 | . 2 . Peak Build Rating 9 | 6 9 8 Average Rating 8 | 4 8 7 On Entrance 4 | . 6 8 Naked Turns . | . . . Heaviest Build 50 | 11 50 49 Greatest Support 40 | 40 40 20 Greatest Overweight (x) 2 | . 2 2 Average Overweight (x) 1 | . 1 2 Largest Inventory Capacity 20 | 8 20 20 Average Capacity 19 | 6 19 20 Most Carried 20 | 4 20 18 Average Carried 16 | 2 17 18 Final Capacity 20 | 8 20 20 Final Carried 18 | 4 18 18 Class Distribution -------------------- 100% | Mutant Dominant Class ---------------- Mutant | -10/Materials Mutant | -10/Subcaves Resources | -11 -10 -10 ----------- Run | Yrd Mat Sub Matter Collected 746 | 258 488 . Remotely . | . . . Salvage Created 484 | . 484 . Parts 24 | . 24 . Haulers Intercepted . | . . . Recyclers Shooed . | . . . Parts Field Recycled . | . . . Retrieved Matter . | . . . Parts Self-Destructed 1 | . . 1 Prevented . | . . . Kills | -11 -10 -10 ------- Run | Yrd Mat Sub Combat Hostiles Destroyed 14 | . 14 . Guns 12 | . 12 . Classes Destroyed 4 | . 4 . Worker 1 | . 1 . Watcher 1 | . 1 . Swarmer 3 | . 3 . Grunt 11 | . 11 . Best Kill Streak 3 | . 3 . Combat Bots Only 3 | . 3 . Max Kills in Single Turn 1 | . 1 . Gunslinging . | . . . Exploded . | . . . Melee . | . . . Uniques/NPCs Destroyed . | . . . Combat | -11 -10 -10 -------- Run | Yrd Mat Sub Hostile Shots Fired 154 | . 146 8 Missed 31 | . 30 1 Damage Taken 1415 | . 1217 198 Core 269 | . 210 59 Absorbed by Shields . | . . . Regen/Repaired (Parts) 70 | . 70 . Core Remaining (%) 100 | 100 . . Volleys Fired 70 | . 66 4 Largest 2 | . 2 2 Hottest 100 | . 100 90 Shots Fired 121 | . 113 8 Gun 106 | . 98 8 Cannon . | . . . Launcher 2 | . 2 . Special 13 | . 13 . Kinetic 18 | . 18 . Thermal 101 | . 93 8 Explosive 2 | . 2 . Electromagnetic . | . . . Robot Hit Streak 8 | . 8 8 Robot Miss Streak 4 | . 4 1 Penetration Max . | . . . Secondary Targets 1 | . 1 . Max Gunslinging Chain 1 | . 1 . Shots Hit Robots 77 | . 70 7 Core Hits 30 | . 28 2 Critical Kills . | . . . Critical Parts Destroyed . | . . . Critical Strikes 8 | . 8 . Burn 8 | . 8 . Melee Attacks . | . . . Impact . | . . . Slashing . | . . . Piercing . | . . . Sneak Attacks . | . . . Combat Hostiles . | . . . Follow-up Attacks . | . . . Damage Inflicted 1018 | . 937 81 Guns 909 | . 828 81 Cannons . | . . . Explosions 105 | . 105 . Melee . | . . . Ramming 4 | . 4 . Kinetic 145 | . 145 . Thermal 764 | . 683 81 Explosive 69 | . 69 . Electromagnetic 36 | . 36 . Impact . | . . . Slashing . | . . . Piercing . | . . . Highest Corruption 3 | . 3 3 Average Corruption 2 | . 2 3 Corruption Purged . | . . . Corruption Blocked . | . . . Effects 26 | . 21 5 Message Errors 4 | . 4 . Matter Fused 4 | . 3 1 Heat Flow Errors 3 | . 2 1 Energy Discharges 6 | . 5 1 Parts Rejected 1 | . 1 . Parts Fused 1 | . . 1 Data Loss (minor) 3 | . 2 1 Data Loss (major) 1 | . 1 . Misfires 1 | . 1 . Alerts 1 | . 1 . Weapon Failures 1 | . 1 . Overload Shots . | . . . Overflow Damage 14 | . 14 . Projectiles . | . . . Explosions 14 | . 14 . Melee . | . . . Knockbacks . | . . . Impact . | . . . Kinetic . | . . . Secondary . | . . . Self-Inflicted Damage 38 | . 38 . Shots 1 | . 1 . Rammed . | . . . Targets Rammed . | . . . Kicked . | . . . Crushed . | . . . Highest Temperature 342 | . 342 299 Average Temperature 106 | . 100 212 Received Heat Transfer 840 | . 477 363 Siege Activations . | . . . Robots Corrupted . | . . . Combat Hostiles . | . . . Parts Fried . | . . . Impact Corruptions . | . . . Robots Melted 2 | . 2 . Combat Hostiles 2 | . 2 . Parts Melted 5 | . 5 . Heat Transferred 2720 | . 2509 211 Parts Sabotaged . | . . . Parts Stolen . | . . . Parts Stripped . | . . . Power Chain Reactions . | . . . Alert | -11 -10 -10 ------- Run | Yrd Mat Sub Peak Influence 157 | . 157 . Initial . | . . . Average 68 | . 70 . Maximum Alert Level . | . . . Low Security (%) 100 | 100 100 . Level 1 . | . . . Level 2 . | . . . Level 3 . | . . . Level 4 . | . . . Level 5 . | . . . High Security . | . . . Max Security . | . . . Squads Dispatched 4 | . 4 . Investigation 4 | . 4 . Extermination . | . . . Reinforcement . | . . . Assault . | . . . Garrison . | . . . Intercept . | . . . Searches Triggered . | . . . Construction Impeded . | . . . Haulers Reinforced . | . . . Active Scanning Responses . | . . . Cargo Convoy Interrupts . | . . . Stealth | -11 -10 -10 --------- Run | Yrd Mat Sub Distress Signals 1 | . 1 . Communications Jammed . | . . . Distress Signals . | . . . Times Spotted 27 | . 26 1 Peak Tracking Total 4 | . 4 1 Tactical Retreats 4 | . 4 . Traps | -11 -10 -10 ------- Run | Yrd Mat Sub Traps Triggered 4 | . 4 . Indirectly . | . . . Trap Hack Attempts . | . . . Triggered . | . . . Disarmed . | . . . Reprogrammed . | . . . Reused . | . . . Traps Extracted . | . . . Installed . | . . . Triggered . | . . . Machines | -11 -10 -10 ---------- Run | Yrd Mat Sub Machines Disabled 5 | . 5 . Max in Single Turn 2 | . 2 . Machines Repaired . | . . . Machines Dismantled . | . . . Machines Sabotaged . | . . . Overloaded Fab Kills . | . . . Hacking | -11 -10 -10 --------- Run | Yrd Mat Sub Machines Accessed 6 | . 6 . Terminals 5 | . 5 . Fabricators . | . . . Repair Stations 1 | . 1 . Recycling Units . | . . . Scanalyzers . | . . . Garrison Access . | . . . Total Hacks 22 | . 22 . Successful 14 | . 14 . Failed 8 | . 8 . Catastrophic 1 | . 1 . Database Lockouts . | . . . Manual 13 | . 13 . Terminals 18 | . 18 . Fabricators . | . . . Repair Stations 4 | . 4 . Recycling Units . | . . . Scanalyzers . | . . . Garrison Access . | . . . Terminal Hacks 4 | . 4 . Locate Traps 2 | . 2 . Zone Layout 2 | . 2 . Fabricator Hacks . | . . . Repair Station Hacks 4 | . 4 . Scan Component 2 | . 2 . Repair 2 | . 2 . Recycling Unit Hacks . | . . . Scanalyzer . | . . . Garrison Access Hacks . | . . . Unauthorized Hacks 6 | . 6 . Terminals 6 | . 6 . Assimilate 2 | . 2 . Botnet 4 | . 4 . Fabricators . | . . . Repair Stations . | . . . Recycling Units . | . . . Scanalyzers . | . . . Garrison Access . | . . . Data Cores Recovered . | . . . Used . | . . . Hacking Detections 5 | . 5 . Full Trace Events 3 | . 3 . Feedback Events . | . . . Feedback Blocked . | . . . Robot Schematics Acquired . | . . . Robots Built . | . . . Authchips . | . . . Time . | . . . Total Robot Build Rating . | . . . Part Schematics Acquired . | . . . Parts Built . | . . . Authchips . | . . . Time . | . . . Total Part Build Rating . | . . . Parts Repaired 2 | . 2 . Time 52 | . 52 . Parts Recycled . | . . . Recycled Matter . | . . . Retrieved Matter . | . . . Retrieved Components . | . . . Parts Scanalyzed . | . . . Part Schematics Acquired . | . . . Parts Damaged . | . . . Bothacking | -11 -10 -10 ------------ Run | Yrd Mat Sub Used RIF Installer . | . . . Robots Hacked . | . . . Non-combat . | . . . Combat . | . . . Robot Hacks Applied . | . . . Relay Couplers Released . | . . . Fabnet Peak Effective % . | . . . Robots Rewired . | . . . Allies Hacked . | . . . Hacks Repelled . | . . . Allies | -11 -10 -10 -------- Run | Yrd Mat Sub Total Allies . | . . . Largest Group . | . . . Highest-Rated Group . | . . . Highest-Rated Ally . | . . . Total Orders . | . . . Ally Attacks . | . . . Total Damage . | . . . Kills . | . . . Allies Corrupted . | . . . Allies Melted . | . . . Intel | -11 -10 -10 ------- Run | Yrd Mat Sub Robot Analysis Total . | . . . Derelict Logs Recovered . | . . . Drone Launches . | . . . Drone Recoveries . | . . . Exploration | -11 -10 -10 ------------- Run | Yrd Mat Sub Turns Passed 2320 | 89 2034 197 Spaces Moved 802 | 48 683 71 Core 1 | 1 . . Treads 121 | 47 74 . Legs 680 | . 609 71 Wheels . | . . . Hover . | . . . Flight . | . . . Fastest Speed 50 | 50 120 260 Average Speed 245 | 157 250 260 Slowest Speed 260 | 160 260 260 Overloaded Moves . | . . . Propulsion Burnouts . | . . . Robots Hopped . | . . . Cave-ins Triggered . | . . . Exploration Rate (%) 32 | 4 80 13 Regions Visited 2 Branch Regions 1 Pre-discovered Areas . | . . . Known Exits Taken . | . . . Unknown Exits Taken 2 | 1 1 . Scrap Searched . | . . . Spaces Dug . | . . . Terrain Destroyed 10 | . 10 . Melee . | . . . Projectile . | . . . AOE 10 | . 10 . Terrain Rammed 1 | . 1 . Walls Destroyed . | . . . Machines Disabled . | . . . Actions | -11 -10 -10 --------- Run | Yrd Mat Sub Total 1027 | 58 894 75 Wait 61 | . 61 . Move 800 | 47 682 71 Hop . | . . . Pick Up 42 | 4 38 . Fast Attach 13 | 6 7 . Attach 7 | . 7 . Detach 1 | . 1 . Swap 15 | 1 14 . Drop 17 | . 17 . Fire 70 | . 66 4 Melee . | . . . Ram 1 | . 1 . Kick . | . . . Crush . | . . . Escape Stasis . | . . . Rewire . | . . . Trap . | . . . Miscellaneous . | . . . Route ------- -11/Scrapyard -10/Materials (discovered 4 exits: [*Mat x2] / [*Min] / [*Sub]) -10/Subcaves History --------- Turn | Location | Event 13 | -11/Scrapyard | Discovered new exit (range 13) 90 | -11/Scrapyard | Entered Materials 310 | -10/Materials | Build established: Mutant 326 | -10/Materials | Repaired Aluminum Leg 353 | -10/Materials | Repaired Sml. Laser 1057 | -10/Materials | Discovered new exit (range 6) 1361 | -10/Materials | Core integrity fell below 50% 1791 | -10/Materials | Discovered new exit (range 9) 1958 | -10/Materials | Core integrity fell below 20% 1996 | -10/Materials | Discovered new exit (range 16) 2109 | -10/Materials | Discovered new exit (range 6) 2124 | -10/Materials | Entered Subcaves 2321 | -10/Subcaves | Destroyed by QM-27J(R) with Subdweller Beam Cannon Last Messages --------------- 01980_ Acquired 10 matter. 01985_ System corrupted: IFF burst signal emitted. 01996_ EXIT=FOUND 02032_ Acquired Mining Laser. 02058_ System corrupted: Component data lost. 02109_ EXIT=FOUND LOCATION=UNKNOWN AMBIENT_HEAT=-10 GOAL=ESCAPE 02148_ System corrupted: Matter fused (-9). 02179_ System corrupted: Energy discharge (-75). 02237_ System corrupted: Heat flow error (+180). 02252_ System corrupted: Aluminum Leg fused. 02293_ Subatomizers dissect the Sub. Machine Gun. 02304_ System corrupted: Component data lost. 02308_ Subatomizers dissect the Sub. Monowheel. 02311_ Critical hit (Meltdown: +300). 02318_ Destroyed Scrap Shield. 02319_ Aluminum Leg destroyed. 02319_ Seismic Detector destroyed. Map ----- +----------------------------------------------------+ | ??????????????????????????????# ####### # | | ???????????????????????????????# ##### # | | ???????????????????????????????# ## # | | ????????????????????????????????# ## ## | | ???????????????????????????####?# ## ### # | | ??????????????????????????## ### ## # # | | ??????????????????????????# ## # ## | | ??????????????????????????# ## | | ??????????????????????????# # | | ??????????????????????????## #### # ### | | ???????????????????????????# ##?# ####?? | | ???????????????????????????# ### #???? | | ???????????????????????????### ## #??? | | ?????????????????????????????## ## ## ?? | | ?????????????????????????????## ## ##### | | ?????????????????????????????# ## #????# | | ?????????????????????????????# ## ?????# | | ????????????????????????????## ### ?????# | | ????????????????????????????"# ##?## ?????# | | ??????????????????????????## ## ###?## ?????? | | ??????????????????????????# ?## ##??# #??? | | ????????????????#??????##?" #??## #???# #### | | ???????????????## #?#?# ## ###### ##??# # | | ??????????????## # # <=<# ### ## #? | | ??????????????# [% ## #? | | ?????????????# R @ ### # | | ????????????# ### ## ### #? | | ?????????? ????# ### ##?????? | | ???????????? ???????# ## #?# #??????? | | ????????????? ??????????### ### #??????? | | ??????????????????????????# #????? | | ??????????????????????????## #### #???? | | ??????????????????????????# #???# ??? | | ?????????????????????????# #??? ?? | | ?????????????????????????# #???? ?? | | ?????????????????????????## ???? ?? | | ??????????????????????????# ??????? | | ?????????????????????????? ?????? | | ????????????????????????? ????? | | ???????????????????????? ????? | | ???????????????????????##""" ## #### ????? | | ????????????????????????#####?## ###???# ###?????? | | ????????????????????????????????##??????##???????? | | ?????????????????????????????????????????????????? | | ?????????????????????????????????????????????????? | | ?????????????????????????????????????????????????? | | ?????????????????????????????????????????????????? | | ?????????????????????????????????????????????????? | | ?????????????????????????????????????????????????? | | ?????????????????????????????????????????????????? | +----------------------------------------------------+ Best States ------------- Heat Dissipation 25 Energy Generation 10 Energy Capacity 250 Matter Stores 300 Matter Capacity 300 Sight Range 16 Terrain Scan Density 10 Evasion (%) 50 Recoil Reduction 2 Item Schematics ----------------- None Robot Schematics ------------------ None Fabricated ------------ Nothing Alien Tech Used ----------------- None Achievements -------------- Quantum Hacking Challenges ------------ None Game ------ Seed FactoryLinkedNetwork Manual? 0 Play Time 00:23:07 Cumulative 24.8 hours Start 2024.09.08 @ 20:08:12 End 2024.09.08 @ 20:33:52 Sessions 1 Manual Loads 0 Difficulty Rogue Special Mode None Game No. 37 Rogue 37 Adventurer 0 Explorer 0 Win Type - Total 0 Types 0/0/0/0/0/0/0/0/0 Lore% 7 Gallery% 29 Achievement% 24 Wizard Run 0 Options --------- Layout 0 ASCII 0 Keyboard 1 Movement Numpad Keybinds 1 Fullscreen 1 Font 18/SmallcapsGlow Map View 76x50 Zoom Use 0% Tactical HUD 1 Map Filters NONE Filters NONE Steam 1 RUN: d45d4702-e91c-473f-be52-353d757e8c7b